bitfinex/quotes_ETHUSD_20250329
["timestamp","ask_amount","ask_price","bid_price","bid_amount"]
[1743253600236,2.99048996,1861.5,1861.2,6.298211]
[1743253600426,2.99048996,1861.4,1861.2,5.237]
[1743253600827,2.99048996,1861.4,1861.2,10.60986]
[1743253601326,2.99048996,1861.4,1861.2,5.37286]
[1743253601644,2.99048996,1861.3,1861.1,10.60995]
[1743253605346,2.99048996,1861.4,1861.1,10.60995]
[1743253605931,3.02958996,1861.2,1860.8,5.37399]
[1743253606126,6.02958996,1861.2,1860.9,10.61074]
[1743253606435,5.99048996,1861.2,1861.0,5.3733]
[1743253606638,2.99048996,1861.2,1861.1,5.37316]
[1743253606953,2.99048996,1861.2,1861.0,6.1917]
[1743253607117,3.23473909,1861.2,1861.0,6.19163]
[1743253607315,3.23473909,1861.2,1861.0,11.5649]
[1743253607543,0.24424913,1861.2,1861.1,5.37316]
[1743253607743,3.23473909,1861.2,1861.0,7.05342]
[1743253608133,0.24424913,1861.2,1861.0,12.42664]
[1743253608657,0.24424913,1861.2,1861.1,5.37316]
[1743253616253,0.24424913,1861.2,1861.0,12.42663]
[1743253616628,0.24424913,1861.2,1861.1,5.37316]
[1743253619368,0.24424913,1861.2,1861.0,7.05341]
[1743253619960,2.99048996,1861.1,1860.9,10.61073]
[1743253620162,2.99048996,1861.0,1860.8,5.37396]
[1743253620365,3.2336978,1861.0,1860.8,10.61096]
[1743253620765,3.2336978,1861.0,1860.8,5.237]
[1743253621267,3.2336978,1861.0,1860.8,10.6109]
[1743253621637,2.99048996,1860.9,1860.8,10.6109]
[1743253621880,2.99048996,1860.9,1860.8,5.237]
[1743253622076,3.23206461,1860.9,1860.8,5.237]
[1743253623383,3.23206461,1860.9,1860.8,10.61103]
[1743253623876,0.24157465,1860.9,1860.8,12.209545]
[1743253624083,0.24157465,1860.9,1860.8,13.011445]
[1743253624496,2.99048996,1861.1,1861.0,5.37345]
[1743253625089,5.99048996,1861.2,1861.0,5.37326]
[1743253625315,2.99048996,1861.3,1861.0,5.37326]
[1743253625498,2.99048996,1861.2,1861.0,5.37326]
[1743253625797,2.99048996,1861.3,1861.0,5.910726]
[1743253625957,8.4115,1861.4,1861.0,5.3734]
[1743253625958,2.99048996,1861.2,1861.0,5.3734]
[1743253626151,2.99048996,1861.2,1861.1,5.37316]
[1743253626579,3.21233867,1861.2,1861.1,5.37316]
[1743253627566,0.22184871,1861.2,1861.1,5.37316]
[1743253629188,0.22184871,1861.2,1861.1,6.17506]
[1743253629518,2.99048996,1861.5,1861.3,5.37255]
[1743253629895,0.22247791,1861.4,1861.3,5.37255]
[1743253630888,0.22247791,1861.4,1861.2,10.6098]
[1743253631322,0.22247791,1861.4,1861.2,15.98249]
[1743253631528,0.22247791,1861.4,1861.2,10.60969]
[1743253631693,0.22247791,1861.4,1861.3,6.433549]
[1743253633125,5.99048996,1861.6,1861.4,5.37229]
[1743253633285,0.22367413,1861.5,1861.4,5.37229]
[1743253633789,0.22367413,1861.5,1861.4,6.17419]
[1743253634629,2.99048996,1861.7,1861.4,6.17403]
[1743253634820,0.22383588,1861.5,1861.4,6.95125151]
[1743253635020,0.0391,1862.0,1861.8,5.37087]
[1743253635224,4.53622517,1862.2,1861.9,5.37085]
[1743253635446,2.99048996,1862.1,1861.9,5.37085]
[1743253635651,4.49712517,1862.2,1862.0,5.37056]
[1743253636208,4.49712517,1862.2,1862.0,5.37033]
[1743253636651,3.0,1862.1,1862.0,5.37033]
[1743253636852,2.99048996,1862.2,1862.0,5.37033]
[1743253637026,0.0391,1862.4,1862.0,10.74069]
[1743253637228,2.99048996,1862.2,1862.0,10.74069]
[1743253637436,2.99048996,1862.1,1861.9,5.37074]
[1743253637626,2.99048996,1862.1,1861.8,15.97789]
[1743253637838,2.99048996,1862.1,1861.9,5.3708]
[1743253638050,2.99048996,1862.0,1861.9,5.236]
[1743253638377,2.99048996,1862.1,1861.9,10.60685]
[1743253638524,0.579923,1862.4,1861.9,10.60685]
[1743253638525,2.99048996,1862.2,1862.0,5.37056]
[1743253638723,2.99048996,1862.1,1861.9,10.60685]
[1743253640152,2.99048996,1862.1,1862.0,5.37056]
[1743253640365,5.99048996,1862.2,1861.9,10.60673]
[1743253640554,2.99048996,1862.1,1861.9,10.60673]
[1743253640924,2.99048996,1862.1,1862.0,5.37056]
[1743253641667,3.22138171,1862.1,1862.0,5.37056]
[1743253643159,0.23089175,1862.1,1862.0,5.37056]
[1743253643465,2.99048996,1862.1,1862.0,5.37056]
[1743253643628,3.22138171,1862.1,1862.0,5.37056]
[1743253643829,3.22138171,1862.1,1861.9,5.37073]
[1743253644029,3.22138171,1862.1,1861.8,5.37113]
[1743253644030,2.99048996,1862.0,1861.8,5.37113]
[1743253644249,2.99048996,1861.9,1861.8,5.37113]
[1743253644480,3.22102334,1862.0,1861.9,5.37085]
[1743253644657,2.99048996,1862.0,1861.9,5.37085]
[1743253645979,2.99048996,1862.0,1861.8,5.37089]
[1743253646189,2.99048996,1861.9,1861.8,5.37089]
[1743253647983,2.99048996,1862.0,1861.8,10.7418]
[1743253648694,2.99048996,1862.0,1861.8,5.37089]
[1743253648862,2.99048996,1862.0,1861.9,5.37072]
[1743253649451,0.0391,1862.3,1862.1,5.3701]
[1743253649655,2.99048996,1862.2,1862.1,10.7402]
[1743253649998,3.0,1862.2,1862.1,5.3701]
[1743253650391,5.99048996,1862.3,1862.2,5.36999]
[1743253650681,5.99048996,1862.3,1862.1,10.74027]
[1743253650885,5.99048996,1862.3,1862.2,5.36999]
[1743253652200,8.35904996,1862.7,1862.5,5.36896]
[1743253652201,2.99048996,1862.7,1862.5,5.36896]
[1743253652360,0.0391,1862.8,1862.5,5.233]
[1743253652561,2.99048996,1862.8,1862.6,5.36859]
[1743253652763,2.99048996,1862.8,1862.7,5.36855]
[1743253653294,5.99048996,1862.8,1862.7,5.36855]
[1743253653665,5.99048996,1862.8,1862.7,6.442264]
[1743253654192,3.04048996,1862.9,1862.8,5.36826]
[1743253654592,3.05,1862.9,1862.8,5.36826]
[1743253654765,6.04048996,1862.9,1862.7,6.442264]
[1743253654965,2.99048996,1862.8,1862.7,6.442264]
[1743253655366,2.99048996,1862.8,1862.7,1.073714]
[1743253656384,2.99048996,1862.8,1862.6,10.73733]
[1743253656385,2.99048996,1862.8,1862.5,0.7759]
[1743253656579,5.36945,1862.4,1862.1,0.8293]
[1743253656773,2.99048996,1862.2,1862.0,10.60243]
[1743253656972,0.0391,1862.3,1862.2,5.36989]
[1743253656973,3.22496294,1862.3,1862.2,5.36989]
[1743253657294,2.99048996,1862.3,1862.2,5.36989]
[1743253657509,2.99048996,1862.3,1862.1,5.37028]
[1743253658009,2.99048996,1862.3,1862.0,10.60236]
[1743253658167,2.99048996,1862.2,1862.0,11.8529421]
[1743253658369,2.99048996,1862.2,1862.0,10.60234]
[1743253658767,2.99048996,1862.2,1862.1,5.37028]
[1743253659086,2.99048996,1862.3,1862.2,5.36986]
[1743253659269,2.99048996,1862.5,1862.4,5.36941]
[1743253659569,2.99048996,1862.5,1862.2,0.8293]
[1743253659570,2.99048996,1862.5,1862.2,6.19907]
[1743253659799,2.99048996,1862.4,1862.2,11.56894]
[1743253659996,2.99048996,1862.3,1862.2,5.36977]
[1743253660497,2.99048996,1862.4,1862.1,5.37028]
[1743253660701,2.99048996,1862.4,1862.2,5.36975]
[1743253660905,2.99048996,1862.4,1862.3,5.3697]
[1743253661108,2.99048996,1862.4,1862.2,5.36975]
[1743253661281,2.99048996,1862.4,1862.3,5.3697]
[1743253661467,2.99048996,1862.4,1862.2,10.73962]
[1743253661671,2.99048996,1862.4,1862.3,5.3697]
[1743253662582,2.99048996,1862.5,1862.4,5.36941]
[1743253663702,0.0391,1862.7,1862.4,5.36941]
[1743253663902,2.99048996,1862.5,1862.4,5.36941]
[1743253664402,3.22436158,1862.5,1862.4,5.36941]
[1743253668713,3.22436158,1862.5,1862.3,6.1989]
[1743253669018,3.22436158,1862.5,1862.2,5.36979]
[1743253669316,2.99048996,1862.3,1862.2,10.60079]
[1743253669682,3.22424131,1862.3,1862.2,10.60079]
[1743253669879,3.22424131,1862.3,1862.1,5.37016]
[1743253670105,0.0391,1862.1,1861.5,6.44784963]
[1743253670304,8.36123996,1862.0,1861.6,6.0027]
[1743253670514,8.36123996,1862.0,1861.6,10.60271]
[1743253670515,2.99048996,1861.7,1861.6,10.60271]
[1743253670905,2.99048996,1861.7,1861.6,10.60244]
[1743253670906,0.22990733,1861.7,1861.6,10.60244]
[1743253675125,2.99048996,1861.8,1861.6,10.60244]
[1743253675308,0.22909835,1861.7,1861.6,10.60244]
[1743253675698,0.22909835,1861.7,1861.6,12.277045]
[1743253677249,5.36948,1862.4,1862.1,5.37028]
[1743253677250,2.99048996,1862.2,1862.1,5.37028]
[1743253677401,3.20024667,1862.2,1862.1,5.37028]
[1743253677610,6.20024667,1862.2,1862.1,5.37028]
[1743253678310,3.20024667,1862.2,1862.1,5.37028]
[1743253679240,0.20975671,1862.2,1862.1,7.044624]
[1743253679407,2.99048996,1862.4,1862.3,5.3697]
[1743253679601,3.18167816,1862.4,1862.3,5.3697]
[1743253680506,0.1911882,1862.4,1862.3,5.3697]
[1743253681335,0.1911882,1862.4,1862.3,6.1414]
[1743253681554,0.1911882,1862.4,1862.3,7.292538]
[1743253681834,2.99048996,1862.7,1862.4,5.36916]
[1743253682036,2.99048996,1862.7,1862.4,10.60016]
[1743253682214,0.19174362,1862.6,1862.5,5.36912]
[1743253682407,2.99048996,1862.7,1862.5,5.36912]
[1743253682614,0.19174362,1862.6,1862.5,5.36912]
[1743253682940,2.99048996,1862.7,1862.5,5.36912]
[1743253683230,0.19174362,1862.6,1862.5,7.82393978]
[1743253683632,0.05,1862.9,1862.8,5.36826]
[1743253683818,0.2430202,1862.9,1862.8,10.59926]
[1743253684645,3.23351016,1862.9,1862.8,5.231]
[1743253684809,3.27261016,1862.9,1862.8,5.231]
[1743253686131,3.23351016,1862.9,1862.8,11.12236]
[1743253686632,3.23351016,1862.9,1862.8,5.7541]
[1743253686844,3.23351016,1862.9,1862.8,5.231]
[1743253688127,3.27261016,1862.9,1862.8,5.231]
[1743253688518,3.23351016,1862.9,1862.8,5.231]
[1743253689271,0.2430202,1862.9,1862.8,10.59926]
[1743253689661,3.23351016,1862.9,1862.8,5.231]
[1743253691742,3.23351016,1862.9,1862.8,10.59926]
[1743253691962,3.23351016,1862.9,1862.8,12.196018]
[1743253692348,0.2430202,1862.9,1862.8,12.196018]
[1743253692559,0.2430202,1862.9,1862.8,13.000218]
[1743253694664,8.60150016,1862.9,1862.5,12.194918]
[1743253694866,2.99048996,1862.6,1862.0,5.3703]
[1743253695093,2.99048996,1862.2,1862.0,10.59941]
[1743253695461,0.19676896,1862.1,1862.0,10.59941]
[1743253695775,0.0391,1862.5,1862.0,12.277006]
[1743253695963,0.19733303,1862.1,1862.0,12.277006]
[1743253696171,3.02958996,1862.8,1862.5,5.36899]
[1743253696373,3.02958996,1862.8,1862.5,10.59699]
[1743253696613,0.19891869,1862.7,1862.5,10.59699]
[1743253696767,2.99048996,1862.6,1862.5,5.228]
[1743253696972,3.1893727,1862.6,1862.5,5.228]
[1743253697380,6.1893727,1862.6,1862.5,5.228]
[1743253698509,0.19888274,1862.6,1862.5,5.228]
[1743253699016,0.19807712,1862.6,1862.5,5.228]
[1743253699173,0.19807712,1862.6,1862.5,11.656717]
[1743253699372,2.99048996,1862.7,1862.5,6.287727]
[1743253699687,0.19807712,1862.6,1862.5,5.228]
[1743253699882,8.35923996,1862.7,1862.5,5.228]
[1743253700089,0.19847994,1862.6,1862.5,5.228]
[1743253700295,8.35923996,1862.7,1862.5,5.228]
[1743253700489,0.19839937,1862.6,1862.5,5.228]
[1743253700679,5.40834,1862.5,1862.0,6.14426]
[1743253700884,2.99048996,1862.2,1862.1,5.229]
[1743253701117,2.99048996,1862.2,1862.0,6.14426]
[1743253701118,3.18711024,1862.2,1862.0,0.7737]
[1743253701287,3.18711024,1862.2,1862.0,6.0017]
[1743253701472,2.99048996,1862.1,1862.0,5.228]
[1743253701673,3.18626841,1862.1,1861.9,0.7737]
[1743253701873,3.18626841,1862.1,1862.0,5.229]
[1743253702103,3.18626841,1862.1,1862.0,10.59956]
[1743253702272,0.19577845,1862.1,1862.0,10.59956]
[1743253702473,2.99048996,1862.2,1862.0,10.59956]
[1743253702674,3.18626841,1862.1,1862.0,5.229]
[1743253703276,8.55654841,1862.1,1861.9,5.229]
[1743253703613,2.99048996,1862.0,1861.9,5.229]
[1743253703972,8.55719525,1862.0,1861.7,0.7737]
[1743253704168,2.99048996,1861.9,1861.8,5.229]
[1743253704395,0.19614529,1862.0,1861.8,5.229]
[1743253704396,3.18663525,1862.0,1861.8,10.59988]
[1743253704633,0.19586746,1861.9,1861.8,10.59988]
[1743253705620,2.99048996,1862.1,1861.8,10.59988]
[1743253705827,2.99048996,1862.0,1861.8,10.59988]
[1743253706021,2.99048996,1861.9,1861.8,5.229]
[1743253706230,3.186438,1861.9,1861.8,5.229]
[1743253706954,3.186438,1861.9,1861.7,5.229]
[1743253707101,2.99048996,1861.8,1861.7,5.229]
[1743253707430,3.18543264,1861.8,1861.7,5.229]
[1743253707842,2.99048996,1861.9,1861.7,10.60043]
[1743253708002,0.19494268,1861.8,1861.7,15.97167]
[1743253708203,0.19494268,1861.8,1861.7,17.568837]
[1743253708418,2.99048996,1862.0,1861.8,5.37106]
[1743253708704,8.36116996,1862.0,1861.7,5.229]
[1743253708919,2.99048996,1861.9,1861.7,5.229]
[1743253709904,8.40087996,1861.8,1861.4,5.37218]
[1743253710113,2.99048996,1861.6,1861.4,10.60118]
[1743253710294,2.99048996,1861.5,1861.4,5.23]
[1743253710504,2.99048996,1861.5,1861.3,11.3762]
[1743253710725,2.99048996,1861.5,1861.3,6.1462]
[1743253710928,2.99048996,1861.5,1861.3,11.3762]
[1743253711340,2.99048996,1861.5,1861.3,10.6025]
[1743253711546,2.99048996,1861.5,1861.3,5.23]
[1743253712046,8.36260996,1861.5,1861.3,5.23]
[1743253712250,2.99048996,1861.4,1861.2,10.60285]
[1743253712407,2.99048996,1861.5,1861.2,10.60268]
[1743253713746,2.99048996,1861.5,1861.2,15.97534]
[1743253714123,2.99048996,1861.5,1861.3,5.37254]
[1743253714316,0.537188,1861.6,1861.2,10.60266]
[1743253714521,2.99048996,1861.6,1861.2,11.740296]
[1743253715104,2.99048996,1861.5,1861.2,11.740296]
[1743253715413,2.99048996,1861.4,1861.2,5.23]
[1743253715606,3.02958996,1861.4,1861.2,5.231]
[1743253716060,2.99048996,1861.3,1860.9,6.15105]
[1743253716343,8.36375996,1861.1,1860.9,5.231]
[1743253716539,2.99048996,1861.1,1860.9,5.231]
[1743253716704,0.17734907,1861.0,1860.9,5.231]
[1743253717113,0.17734907,1861.0,1860.9,10.60474]
[1743253717748,2.99048996,1861.0,1860.9,5.231]
[1743253717926,3.16743422,1861.0,1860.9,5.231]
[1743253718314,3.48417764,1861.0,1860.7,6.15192]
[1743253718546,2.99048996,1860.9,1860.8,5.23]
[1743253718911,3.16719452,1860.9,1860.8,5.23]
[1743253719343,0.17670456,1860.9,1860.8,10.60403]
[1743253720433,2.99048996,1861.1,1860.8,10.60403]
[1743253720742,2.99048996,1861.0,1860.8,10.60399]
[1743253721053,0.17593,1861.0,1860.9,5.37374]
[1743253722719,0.17593,1861.0,1860.8,15.97781]
[1743253723018,0.17593,1861.0,1860.8,5.23]
[1743253723242,0.17593,1861.0,1860.8,10.60388]
[1743253723447,0.17593,1861.0,1860.9,5.37374]
[1743253723949,2.99048996,1861.2,1860.9,5.37374]
[1743253724148,0.17851315,1861.0,1860.9,5.37374]
[1743253724361,2.99048996,1861.2,1860.9,5.37374]
[1743253724540,0.17851315,1861.0,1860.9,5.37374]
[1743253724867,2.99048996,1861.2,1861.0,5.37344]
[1743253725239,2.99048996,1861.3,1861.1,5.37316]
[1743253725835,2.99048996,1861.3,1861.0,6.15088]
[1743253726140,2.99048996,1861.5,1861.2,10.74545]
[1743253726479,2.99048996,1861.5,1861.3,5.37258]
[1743253726640,2.99048996,1861.6,1861.3,11.52257]
[1743253727053,2.99048996,1861.6,1861.3,6.14999]
[1743253727293,2.99048996,1861.6,1861.3,11.52236]
[1743253727500,5.99048996,1861.7,1861.4,5.37214]
[1743253727653,2.99048996,1861.8,1861.5,5.37178]
[1743253727853,2.99048996,1861.6,1861.4,5.37229]
[1743253728076,2.99048996,1861.6,1861.3,7.825436]
[1743253728479,2.99048996,1861.6,1861.3,7.825406]
[1743253728758,2.99048996,1861.6,1861.3,7.825546]
[1743253729474,2.99048996,1861.5,1861.3,2.453036]
[1743253729652,2.99048996,1861.5,1861.4,5.231]
[1743253731682,3.1747764,1861.5,1861.4,5.231]
[1743253732088,0.18428644,1861.5,1861.4,10.6033]
[1743253732287,0.18428644,1861.5,1861.4,5.231]
[1743253732788,3.1747764,1861.5,1861.4,5.231]
[1743253734421,3.1747764,1861.5,1861.0,1.152461]
[1743253734606,2.99048996,1861.2,1861.1,5.231]
[1743253734770,2.99048996,1861.3,1861.1,10.604]
[1743253734974,0.1832102,1861.2,1861.1,10.604]
[1743253735518,2.99048996,1861.3,1861.1,10.604]
[1743253735699,2.99048996,1861.5,1861.2,5.37276]
[1743253735900,2.99048996,1861.4,1861.2,5.37276]
[1743253737074,2.99048996,1861.4,1861.1,10.604]
[1743253737375,2.99048996,1861.3,1861.1,10.604]
[1743253737576,2.99048996,1861.4,1861.1,12.201744]
[1743253738728,2.99048996,1861.4,1861.1,12.201694]
[1743253738873,2.99048996,1861.4,1861.2,5.37272]
[1743253739070,2.99048996,1861.5,1861.3,5.37257]
[1743253739274,5.99048996,1861.6,1861.4,5.3723]
[1743253739714,5.99048996,1861.6,1861.3,5.37252]
[1743253740682,5.99048996,1861.6,1861.2,6.19325]
[1743253740881,2.99048996,1861.5,1861.2,6.19325]
[1743253741106,8.36251996,1861.5,1861.2,6.19325]
[1743253741276,2.99048996,1861.5,1861.2,6.19316]
[1743253742023,2.99048996,1861.5,1861.2,6.19308]
[1743253742178,2.99048996,1861.5,1861.3,5.3724]
[1743253742378,3.0,1861.5,1861.4,5.3723]
[1743253743197,3.0,1861.5,1861.3,5.3724]
[1743253743522,3.0,1861.5,1861.3,10.74479]
[1743253743723,5.99048996,1861.7,1861.4,5.3723]
[1743253743930,2.99048996,1861.8,1861.6,5.37172]
[1743253744080,2.99048996,1861.9,1861.6,5.37161]
[1743253744682,3.0,1861.8,1861.6,5.37161]
[1743253745300,3.0,1861.8,1861.6,10.74316]
[1743253745515,3.02958996,1862.1,1861.5,6.0018]
[1743253745683,3.0,1862.0,1861.8,5.37114]
[1743253745881,2.99048996,1862.0,1861.8,5.37114]
[1743253746895,0.18746949,1861.9,1861.8,6.15634]
[1743253747102,3.0,1862.1,1861.8,11.38618]
[1743253747283,0.18782792,1862.0,1861.8,11.38618]
[1743253747483,0.18782792,1862.0,1861.9,5.37079]
[1743253747898,2.99048996,1862.2,1861.9,5.37079]
[1743253748099,0.1881863,1862.1,1861.9,5.37079]
[1743253748326,2.99048996,1862.2,1861.9,5.37079]
[1743253748484,0.1881863,1862.1,1861.9,5.37079]
[1743253748680,6.02958996,1862.3,1862.0,5.37056]
[1743253748886,0.19003943,1862.2,1862.0,5.37056]
[1743253749903,3.18052939,1862.2,1861.9,1.675697]
[1743253750226,3.18052939,1862.2,1861.8,5.23]
[1743253750227,2.99048996,1862.0,1861.8,5.23]
[1743253750391,2.99048996,1862.0,1861.8,10.60106]
[1743253750595,0.19204093,1861.9,1861.8,5.23]
[1743253750801,3.18253089,1861.9,1861.6,6.75708]
[1743253751015,3.18253089,1861.9,1861.4,0.53723]
[1743253751016,2.99048996,1861.7,1861.5,5.3719]
[1743253751320,2.99048996,1861.7,1861.6,5.23]
[1743253751504,2.99048996,1861.8,1861.6,5.23]
[1743253751705,2.99048996,1861.9,1861.6,10.60161]
[1743253752021,2.99048996,1861.9,1861.6,15.9732]
[1743253752197,2.99048996,1861.9,1861.6,17.57052]
[1743253752827,2.99048996,1861.9,1861.6,12.19891]
[1743253753138,2.99048996,1861.9,1861.7,5.3714]
[1743253753328,2.99048996,1862.0,1861.7,6.15652]
[1743253753524,2.99048996,1862.0,1861.7,11.52776]
[1743253753731,2.99048996,1862.0,1861.7,13.363268]
[1743253754024,5.99048996,1862.1,1861.8,5.37105]
[1743253754937,2.99048996,1862.3,1862.0,6.15563]
[1743253755138,2.99048996,1862.3,1862.0,11.38463]
[1743253755301,2.99048996,1862.3,1862.0,16.75503]
[1743253755641,2.99048996,1862.3,1862.0,13.060103]
[1743253756230,2.99048996,1862.2,1862.0,13.060073]
[1743253756422,2.99048996,1862.3,1862.0,13.060073]
[1743253756830,2.99048996,1862.3,1862.0,18.430453]
[1743253757012,2.99048996,1862.3,1862.1,5.37016]
[1743253757439,3.0,1862.4,1862.1,12.5832533]
[1743253758139,3.0,1862.5,1862.3,6.12342]
[1743253758434,5.40784,1862.7,1862.4,5.228]
[1743253758435,2.99048996,1862.7,1862.4,5.228]
[1743253758639,3.0,1862.6,1862.4,5.228]
[1743253759342,5.99048996,1862.6,1862.4,5.228]
[1743253759646,6.02958996,1862.6,1862.1,7.9670433]
[1743253759850,8.35993996,1862.4,1862.2,5.228]
[1743253760212,2.99048996,1862.3,1862.2,5.228]
[1743253760408,11.35977996,1862.5,1862.2,5.228]
[1743253760676,2.99048996,1862.4,1862.2,5.228]
[1743253760868,2.99048996,1862.3,1862.2,5.228]
[1743253761507,8.55756031,1862.3,1862.2,5.228]
[1743253761812,8.59666031,1862.3,1862.2,5.228]
[1743253763142,3.22696031,1862.3,1862.2,5.228]
[1743253763538,8.59666031,1862.3,1862.2,5.228]
[1743253763739,13.96663031,1862.3,1861.8,6.12493]
[1743253763936,8.36049996,1862.2,1861.9,5.228]
[1743253764247,2.99048996,1862.0,1861.7,6.12511]
[1743253764437,2.99048996,1862.0,1861.8,5.228]
[1743253764623,0.19531714,1861.9,1861.8,5.228]
[1743253765450,3.1858071,1861.9,1861.8,5.228]
[1743253765632,5.37133,1861.8,1861.5,0.7958]
[1743253765808,2.99048996,1861.6,1861.2,6.1685]
[1743253766014,2.99048996,1861.5,1861.4,5.228]
[1743253766254,0.18971819,1861.5,1861.4,5.228]
[1743253766612,8.55221815,1861.5,1861.4,5.228]
[1743253767861,3.18020815,1861.5,1861.4,5.228]
[1743253770853,8.55221815,1861.5,1861.4,5.228]
[1743253771216,3.18020815,1861.5,1861.4,5.228]
[1743253771917,0.18971819,1861.5,1861.4,5.228]
[1743253772121,11.36192996,1861.7,1861.4,6.288046]
[1743253772322,0.17043395,1861.6,1861.4,5.228]
[1743253772523,5.99048996,1861.7,1861.4,5.228]
[1743253772734,0.17083825,1861.6,1861.4,5.228]
[1743253772918,5.99048996,1861.7,1861.4,5.228]
[1743253773129,0.16893877,1861.6,1861.5,6.17509]
[1743253773341,8.36141996,1861.9,1861.5,7.85799488]
[1743253773643,0.1702217,1861.8,1861.5,7.85799488]
[1743253774541,3.16071166,1861.8,1861.5,7.85799488]
[1743253774749,2.99048996,1861.7,1861.4,5.228]
[1743253775045,0.16950464,1861.6,1861.4,5.228]
[1743253775239,0.16950464,1861.6,1861.4,10.65398652]
[1743253775432,2.99048996,1861.7,1861.4,10.60027]
[1743253775742,2.99048996,1861.7,1861.4,12.277853]
[1743253775948,0.16950464,1861.6,1861.4,12.277853]
[1743253776113,2.99048996,1861.7,1861.4,12.277853]
[1743253776313,0.16950464,1861.6,1861.4,12.277853]
[1743253776548,2.99048996,1861.7,1861.4,12.277853]
[1743253776725,0.16950464,1861.6,1861.4,12.277853]
[1743253776931,2.99048996,1861.7,1861.4,12.277853]
[1743253777135,0.16950464,1861.6,1861.4,12.277853]
[1743253777336,2.99048996,1861.8,1861.5,1.2277853]
[1743253777541,0.16986319,1861.7,1861.5,5.37201]
[1743253777738,0.16986319,1861.7,1861.6,6.22853604]
[1743253777933,2.99048996,1862.0,1861.6,6.22853604]
[1743253778145,0.17145732,1861.9,1861.6,6.22853604]
[1743253778450,3.16194728,1861.9,1861.7,0.6228536]
[1743253778651,3.16194728,1861.9,1861.8,5.228]
[1743253780248,3.16194728,1861.9,1861.6,6.17482]
[1743253780443,3.16194728,1861.9,1861.7,5.228]
[1743253780645,2.99048996,1861.8,1861.7,5.228]
[1743253780846,0.17145732,1861.9,1861.7,5.83111]
[1743253781157,0.17171966,1861.8,1861.7,5.83111]
[1743253781444,2.99048996,1861.9,1861.7,5.83111]
[1743253781750,0.1721237,1861.8,1861.7,11.20254]
[1743253781955,2.99048996,1862.0,1861.7,11.20254]
[1743253782118,0.17280532,1861.9,1861.7,11.20254]
[1743253782942,0.17280532,1861.9,1861.7,5.83111]
[1743253783853,8.53431528,1861.9,1861.7,5.83111]
[1743253784025,2.99048996,1861.8,1861.7,5.228]
[1743253784226,2.99048996,1861.8,1861.5,6.17505]
[1743253784556,3.16406034,1861.8,1861.6,5.227]
[1743253785356,3.16406034,1861.8,1861.6,10.59871]
[1743253789253,3.16406034,1861.8,1861.6,5.227]
[1743253789658,2.99048996,1861.8,1861.6,5.227]
[1743253789956,0.16944412,1861.7,1861.6,5.227]
[1743253790153,0.16944412,1861.7,1861.6,6.904384]
[1743253791733,0.16944412,1861.7,1861.6,12.276104]
[1743253792863,0.16944412,1861.7,1861.6,6.904384]
[1743253793063,0.16944412,1861.7,1861.6,5.227]
[1743253793565,0.16944412,1861.7,1861.6,10.59872]
[1743253796466,0.16944412,1861.7,1861.6,5.227]
[1743253797637,0.16944412,1861.7,1861.6,10.59872]
[1743253798360,0.16944412,1861.7,1861.6,5.227]
[1743253799566,0.16944412,1861.7,1861.6,10.59872]
[1743253800272,0.16944412,1861.7,1861.6,5.227]
[1743253800472,0.16944412,1861.7,1861.3,0.823]
[1743253800659,2.99048996,1861.6,1861.4,5.226]
[1743253800856,2.99048996,1861.6,1861.3,0.823]
[1743253801056,0.1698431,1861.5,1861.4,5.226]
[1743253801372,3.16033306,1861.5,1861.4,5.226]
[1743253801584,4.01353837,1861.5,1860.7,28.427]
[1743253801868,2.99048996,1861.2,1861.0,10.74665]
[1743253802067,2.99048996,1861.3,1861.0,10.74665]
[1743253802249,0.16856725,1861.1,1861.0,5.37322]
[1743253802445,2.99048996,1861.3,1861.0,10.80014798]
[1743253802645,0.16856725,1861.1,1861.0,10.74642]
[1743253802951,2.99048996,1861.5,1861.2,6.19587]
[1743253803152,2.99048996,1861.5,1861.3,5.37241]
[1743253803349,2.99048996,1861.5,1861.2,11.42185]
[1743253803569,2.99048996,1861.7,1861.5,5.37194]
[1743253804155,2.99048996,1861.6,1861.4,10.74414]
[1743253804479,2.99048996,1861.6,1861.5,5.37201]
[1743253804841,2.99048996,1861.7,1861.5,10.74385]
[1743253805054,2.99048996,1861.7,1861.5,6.18904]
[1743253805884,2.99048996,1861.7,1861.5,11.56083]
[1743253806195,0.0391,1862.0,1861.7,5.37114]
[1743253806487,3.02958996,1862.0,1861.7,5.37114]
[1743253806671,0.1677654,1861.9,1861.8,5.37114]
[1743253807074,0.1677654,1861.9,1861.8,6.18834]
[1743253807376,2.99048996,1862.1,1861.8,0.8172]
[1743253807585,2.99048996,1862.3,1862.1,5.37028]
[1743253807786,2.99048996,1862.3,1862.0,10.5965]
[1743253808187,2.99048996,1862.3,1862.1,5.37024]
[1743253808570,2.99048996,1862.2,1862.0,10.5965]
[1743253808770,2.99048996,1862.1,1862.0,5.226]
[1743253808965,8.69904896,1862.1,1861.8,5.226]
[1743253809167,2.99048996,1861.9,1861.8,5.226]
[1743253809883,8.40043996,1861.9,1861.8,5.226]
[1743253811588,8.40043996,1861.9,1861.5,10.59798]
[1743253811794,3.02958996,1861.9,1861.5,10.5979]
[1743253811989,3.86961096,1861.9,1861.6,5.37162]
[1743253812182,2.99048996,1861.8,1861.6,5.37162]
[1743253812865,2.99048996,1861.7,1861.5,15.96979]
[1743253813194,2.99048996,1861.7,1861.5,10.59789]
[1743253813699,2.99048996,1861.7,1861.5,15.96973]
[1743253813898,2.99048996,1861.8,1861.5,15.96973]
[1743253814699,2.99048996,1861.8,1861.5,10.59784]
[1743253815187,0.0391,1862.1,1861.7,6.18863]
[1743253815395,2.99048996,1861.8,1861.5,11.41515]
[1743253816203,3.02958996,1861.8,1861.5,11.41515]
[1743253816800,3.02958996,1861.8,1861.6,5.37171]
[1743253817024,2.99048996,1861.8,1861.7,5.37143]
[1743253817181,2.99048996,1861.8,1861.6,5.37171]